bitfinex/quotes_ETHUSD_20241103
["timestamp","ask_amount","ask_price","bid_price","bid_amount"]
[1730666350074,0.55,2464.9,2464.5,3.65185]
[1730666350977,0.55,2464.9,2464.4,3.65189]
[1730666351182,0.55,2465.1,2464.6,3.65165]
[1730666351395,4.82475221,2465.1,2464.6,3.65165]
[1730666351612,3.65111,2465.0,2464.5,3.65678]
[1730666351900,4.82468221,2465.1,2464.6,3.65163]
[1730666352302,3.65117,2465.0,2464.5,3.65677]
[1730666352610,3.65126,2464.9,2464.3,4.47716]
[1730666353113,3.65145,2464.8,2464.3,8.12924]
[1730666353604,0.55,2464.8,2464.3,0.8201]
[1730666353908,4.2015,2464.8,2464.3,4.4772]
[1730666354074,4.2015,2464.8,2464.3,0.8251]
[1730666354277,3.65157,2464.7,2464.3,0.8201]
[1730666354611,3.65156,2464.7,2464.2,3.65219]
[1730666354811,5.09757852,2464.8,2464.3,3.65203]
[1730666355113,0.89614852,2464.8,2464.3,3.65703]
[1730666355310,3.65127,2464.9,2464.4,3.652]
[1730666355872,0.55,2464.9,2464.5,3.65177]
[1730666356506,4.20128,2464.9,2464.4,3.652]
[1730666356668,0.55,2464.9,2464.4,3.652]
[1730666356881,3.65128,2464.9,2464.5,0.8201]
[1730666357114,3.65128,2464.9,2464.6,0.005]
[1730666357320,7.91815229,2465.0,2464.5,0.8201]
[1730666357520,7.91815229,2465.0,2464.6,0.005]
[1730666357521,3.65127,2464.9,2464.6,0.005]
[1730666357695,1.26692229,2465.0,2464.8,3.65139]
[1730666357899,4.20104,2465.1,2464.6,3.65657]
[1730666358213,5.46796229,2465.1,2464.7,0.04689868]
[1730666358820,4.91804229,2465.0,2464.7,0.04689868]
[1730666359318,4.91804229,2465.0,2464.6,3.65669]
[1730666359319,1.26692229,2465.0,2464.6,3.65669]
[1730666359984,4.91808229,2465.0,2464.6,3.65669]
[1730666360180,1.26692229,2465.0,2464.6,3.65668]
[1730666360420,1.26692229,2464.9,2464.6,0.005]
[1730666360807,1.26692229,2464.9,2464.6,3.65668]
[1730666362020,1.26692229,2464.8,2464.5,0.8201]
[1730666362385,1.26692229,2464.7,2464.6,0.04697971]
[1730666362581,5.31055707,2464.8,2464.6,0.04697971]
[1730666362582,1.26692229,2464.8,2464.6,0.04697971]
[1730666362820,1.26692229,2464.7,2464.6,0.04697971]
[1730666363230,1.26692229,2464.9,2464.7,3.65156]
[1730666363393,1.26692229,2464.9,2464.8,3.65141]
[1730666363727,1.26692229,2464.9,2464.8,3.69841403]
[1730666364109,1.26692229,2465.0,2464.8,3.69841403]
[1730666364341,1.27424257,2465.0,2464.9,3.65126]
[1730666364541,1.27424257,2465.0,2464.8,3.69840403]
[1730666364733,1.27424257,2465.0,2464.8,3.6514]
[1730666364946,1.2740877,2465.0,2464.9,0.04700403]
[1730666365148,1.65911707,2465.1,2464.9,0.04700403]
[1730666365478,1.65911707,2465.1,2465.0,0.04700403]
[1730666365833,4.75935332,2465.1,2464.7,3.65155]
[1730666366066,1.27398341,2464.9,2464.7,3.65155]
[1730666366583,1.27398341,2465.0,2464.8,3.65141]
[1730666366785,1.27398341,2465.0,2464.9,3.65626]
[1730666366975,1.27398341,2465.1,2464.9,3.65626]
[1730666367996,1.27398341,2465.1,2465.0,4.48331]
[1730666368292,1.27398341,2465.7,2465.5,3.65037]
[1730666368431,2.12302586,2465.9,2465.6,3.65022]
[1730666368432,1.27398341,2465.9,2465.6,3.65022]
[1730666368630,1.69864454,2466.0,2465.7,3.65505]
[1730666368631,1.27398341,2466.0,2465.7,3.65505]
[1730666369266,1.27398341,2466.0,2465.7,0.005]
[1730666369465,4.92349341,2466.1,2465.7,3.65507]
[1730666369642,1.27398341,2466.1,2465.8,3.6499]
[1730666370511,1.27398341,2466.1,2465.9,3.65477]
[1730666370757,1.69864454,2466.3,2465.9,3.65477]
[1730666370758,1.27398341,2466.2,2465.9,3.65477]
[1730666371613,4.31157379,2466.2,2465.7,0.005]
[1730666371829,5.5855572,2466.2,2465.7,3.65499]
[1730666372027,4.31157379,2466.2,2465.8,0.04663134]
[1730666372251,5.5855572,2466.2,2465.8,0.04663134]
[1730666372561,4.31157379,2466.2,2465.7,3.65499]
[1730666372768,3.64963,2466.0,2465.9,0.04622223]
[1730666372953,0.55855572,2466.1,2465.8,3.69607818]
[1730666373127,0.55855572,2466.1,2465.7,3.65005]
[1730666373330,0.55855572,2466.1,2465.9,0.04622223]
[1730666373528,0.55855572,2466.1,2465.7,3.65005]
[1730666373761,1.10855572,2466.1,2466.0,0.04622223]
[1730666373969,1.10855572,2466.1,2465.7,3.65005]
[1730666374161,4.31158379,2466.2,2465.7,3.65505]
[1730666374162,0.66217379,2466.2,2465.7,3.65505]
[1730666374374,0.66217379,2466.2,2465.8,3.69605223]
[1730666374928,0.66217379,2466.2,2465.8,3.64983]
[1730666375129,0.66217379,2466.2,2465.9,0.04622223]
[1730666375349,0.66217379,2466.2,2465.8,3.64983]
[1730666376562,0.66217379,2466.2,2465.7,3.65505]
[1730666376769,3.0,2466.5,2466.2,3.64932]
[1730666376973,0.55,2466.5,2466.2,3.64932]
[1730666377273,0.55,2466.5,2466.3,0.04622223]
[1730666377634,0.55,2466.5,2466.2,3.64931]
[1730666377855,0.55,2466.6,2466.4,0.04622223]
[1730666378059,0.41624,2466.5,2466.3,0.04612911]
[1730666378243,0.41624,2466.5,2466.1,0.7672]
[1730666378579,0.96624,2466.5,2466.4,0.04608458]
[1730666378781,4.06521,2466.5,2466.1,0.7672]
[1730666379084,4.61521,2466.5,2466.1,0.7672]
[1730666379235,0.55,2466.3,2466.2,0.04607649]
[1730666379819,0.55,2466.3,2465.9,3.64976]
[1730666379978,0.55,2466.3,2466.0,0.04606434]
[1730666381206,0.41624,2466.5,2466.0,0.05106434]
[1730666381392,4.06521,2466.5,2466.1,0.7672]
[1730666381599,0.771406,2466.4,2466.2,0.04611292]
[1730666382282,4.420526,2466.4,2466.2,0.04611292]
[1730666382487,0.55,2466.3,2466.2,0.04611292]
[1730666382790,0.55,2466.3,2465.9,3.6497]
[1730666382973,0.55,2466.3,2466.0,0.04599552]
[1730666383303,5.12425513,2466.3,2466.0,0.04599552]
[1730666383917,3.64938,2466.2,2466.0,0.04599552]
[1730666384208,3.64959,2466.1,2465.6,3.65021]
[1730666384385,4.19957,2466.1,2465.7,0.04599552]
[1730666384722,0.6124,2466.2,2465.8,3.65482]
[1730666385173,4.57427513,2466.3,2465.9,3.69576552]
[1730666385174,0.92505513,2466.3,2465.9,3.69576552]
[1730666385375,3.64934,2466.2,2465.9,0.04599552]
[1730666385617,0.92505513,2466.3,2465.9,0.04599552]
[1730666385812,3.64919,2466.3,2465.8,3.65486]
[1730666385970,3.64919,2466.3,2465.9,0.04599552]
[1730666387237,4.19933,2466.3,2465.9,0.04599552]
[1730666387617,3.64949,2466.1,2465.9,0.04599552]
[1730666387813,0.55,2466.3,2465.9,0.04599552]
[1730666387814,3.64945,2466.2,2465.9,0.04599552]
[1730666388129,0.419945,2466.1,2465.9,0.04599552]
[1730666388323,4.069435,2466.1,2465.9,0.04599552]
[1730666389736,4.19963,2466.0,2465.9,0.04599552]
[1730666389947,4.81203,2466.0,2465.9,0.04599552]
[1730666390149,4.1999,2465.9,2465.4,3.65043]
[1730666390351,0.55,2465.9,2465.5,3.65529]
[1730666390651,3.6497,2466.0,2465.5,3.70128552]
[1730666390845,4.80798704,2466.0,2465.5,3.70128552]
[1730666391639,0.419945,2466.1,2465.7,3.65501]
[1730666391802,4.069445,2466.1,2465.7,3.65501]
[1730666392017,0.419945,2466.1,2465.8,0.04614938]
[1730666392213,4.069445,2466.1,2465.7,3.65501]
[1730666392413,4.069445,2466.1,2465.8,0.04606839]
[1730666392653,4.069445,2466.1,2465.7,3.65501]
[1730666392855,4.069445,2466.1,2465.9,0.04606839]
[1730666393023,4.069445,2466.1,2465.7,0.005]
[1730666393375,0.419945,2466.1,2465.8,3.69595839]
[1730666393545,0.55,2466.0,2465.8,0.04606839]
[1730666393857,4.19973,2466.0,2465.6,0.7569]
[1730666394057,3.64985,2465.9,2465.6,0.7569]
[1730666394221,3.64985,2465.9,2465.7,0.04608864]
[1730666395380,3.64964,2466.0,2465.7,0.04608864]
[1730666396373,4.434563,2466.0,2465.7,0.04608864]
[1730666399688,0.55,2465.9,2465.7,0.04608864]
[1730666399980,4.19986,2465.9,2465.7,0.04608864]
[1730666400193,4.19986,2465.9,2465.4,3.65044]
[1730666400744,4.19982,2465.9,2465.5,0.04608864]
[1730666400985,0.784923,2466.0,2465.5,0.04608864]
[1730666400986,0.4984743,2465.8,2465.6,3.65013]
[1730666401287,6.61086773,2466.5,2466.0,3.64956]
[1730666401288,1.27398341,2466.2,2466.0,3.64956]
[1730666401509,1.27398341,2466.5,2466.2,3.64927]
[1730666401787,1.69864454,2466.6,2466.2,3.64927]
[1730666401788,1.27398341,2466.6,2466.3,3.64912]
[1730666402036,1.27398341,2466.8,2466.3,3.65416]
[1730666402187,1.27398341,2466.8,2465.9,0.08109925]
[1730666402188,1.27398341,2466.9,2466.7,0.005]
[1730666402395,1.27398341,2467.1,2466.8,0.04600767]
[1730666402620,4.92201341,2467.1,2466.7,0.005]
[1730666402820,3.64793,2467.2,2466.8,0.04600767]
[1730666402821,1.27398341,2467.2,2466.8,0.04600767]
[1730666403021,3.64815,2467.0,2466.5,0.005]
[1730666403243,3.64815,2467.0,2466.6,0.04600767]
[1730666403399,3.6484,2466.9,2466.6,0.04600767]
[1730666403598,3.64815,2467.0,2466.6,0.04600767]
[1730666404034,3.64815,2467.0,2466.6,3.69473767]
[1730666404419,3.64815,2467.0,2466.6,0.04600767]
[1730666404625,4.84324257,2467.0,2466.6,0.04600767]
[1730666405038,3.6483,2466.9,2466.6,0.04600767]
[1730666405319,4.84324257,2467.0,2466.6,0.04600767]
[1730666405726,8.49153257,2467.0,2466.6,0.04600767]
[1730666405926,4.84324257,2467.0,2466.6,0.04600767]
[1730666406746,3.64831,2466.9,2466.6,0.04600767]
[1730666406962,4.84324257,2467.0,2466.6,0.04600767]
[1730666407246,0.51405054,2466.9,2466.6,0.04600767]
[1730666407540,3.64847,2466.8,2466.6,0.04600767]
[1730666408318,0.55,2466.7,2466.6,0.04600767]
[1730666408553,4.19873,2466.7,2466.2,0.005]
[1730666408842,4.19873,2466.7,2466.3,0.04546533]
[1730666409006,0.78472,2466.6,2466.2,3.65433]
[1730666409427,4.43346,2466.6,2466.3,0.04546533]
[1730666409646,4.43346,2466.6,2466.2,3.65433]
[1730666409647,8.08229,2466.6,2466.2,0.005]
[1730666409849,4.19889,2466.5,2466.4,0.04546533]
[1730666410072,5.12184995,2466.5,2466.0,0.005]
[1730666410358,5.12184995,2466.5,2466.0,3.65452]
[1730666410758,5.12184995,2466.5,2466.1,0.04560291]
[1730666411539,6.39583336,2466.5,2466.1,0.04560291]
[1730666411967,3.64906,2466.4,2466.1,0.04560291]
[1730666412280,4.65368934,2466.3,2466.1,0.04560291]
[1730666412762,4.65368934,2466.3,2466.0,0.005]
[1730666412963,4.65368934,2466.3,2466.2,0.04560291]
[1730666413169,0.55,2466.2,2465.6,0.005]
[1730666413471,0.55,2466.2,2465.8,0.005]
[1730666413472,1.27398341,2466.1,2465.8,0.005]
[1730666413676,1.27398341,2466.3,2466.1,3.64948]
[1730666413831,2.11918095,2466.6,2466.3,3.64919]
[1730666413832,1.27398341,2466.4,2466.3,3.64919]
[1730666414031,1.27398341,2466.6,2466.3,3.69484148]
[1730666414370,1.27398341,2466.6,2466.3,3.69475148]
[1730666414665,1.27398341,2466.6,2466.3,0.04565148]
[1730666414851,1.27398341,2466.5,2466.3,0.04565148]
[1730666415058,1.27398341,2466.6,2466.2,3.65425]
[1730666415272,1.27398341,2466.6,2466.4,0.04416584]
[1730666415563,1.27398341,2466.6,2466.2,3.65425]
[1730666415766,1.27398341,2466.6,2466.5,0.04416584]
[1730666415930,1.27398341,2466.6,2466.2,3.65425]
[1730666416132,1.27398341,2466.6,2466.5,0.04416584]
[1730666416570,1.27398341,2466.6,2466.2,3.65425]
[1730666416725,1.27398341,2466.6,2466.5,0.04416584]
[1730666416930,4.92273341,2466.6,2466.2,0.005]
[1730666417193,1.27398341,2466.5,2466.2,0.005]
[1730666417497,1.27398341,2466.5,2466.2,3.65421]
[1730666417694,1.27398341,2466.5,2466.2,0.005]
[1730666418128,1.27398341,2466.5,2466.2,7.30356]
[1730666418334,1.27398341,2466.5,2466.2,3.65424]
[1730666418498,1.27398341,2466.5,2466.2,0.005]
[1730666418700,3.64906,2466.4,2466.0,4.47553]
[1730666418897,1.9361072,2466.5,2466.1,3.64939]
[1730666419204,1.27398341,2466.5,2466.1,3.64934]
[1730666419611,4.92274341,2466.6,2466.1,3.64934]
[1730666419996,8.57162341,2466.6,2466.1,3.64934]
[1730666420510,8.57156341,2466.6,2466.1,3.64934]
[1730666420704,4.92274341,2466.6,2466.1,3.64934]
[1730666421295,6.16194819,2466.6,2466.1,3.64934]
[1730666421692,3.64906,2466.4,2466.0,0.826]
[1730666421897,3.6489,2466.5,2466.1,3.64948]
[1730666422133,3.6489,2466.5,2466.1,3.69364584]
[1730666423104,2.51318819,2466.6,2466.1,3.69364584]
[1730666423315,6.16193819,2466.6,2466.1,3.69364584]
[1730666424496,1.70091827,2466.5,2466.1,0.04416584]
[1730666424805,7.29853,2466.3,2466.1,0.04416584]
[1730666425022,3.64933,2466.2,2465.8,0.8374]
[1730666425339,3.64933,2466.2,2465.6,3.65011]
[1730666425340,3.64978,2465.9,2465.6,0.8374]
[1730666425706,7.29967,2465.9,2465.6,0.005]
[1730666426132,4.379747,2465.9,2465.4,0.8374]
[1730666426334,4.19997,2465.8,2465.4,0.8374]
[1730666426633,4.19997,2465.8,2465.2,3.65572]
[1730666426634,3.65015,2465.7,2465.2,3.65572]
[1730666427740,7.3003,2465.7,2465.2,3.65572]
[1730666427951,0.55,2465.8,2465.2,0.005]
[1730666428246,3.65029,2465.6,2465.2,0.005]
[1730666428407,3.65038,2465.5,2465.2,0.005]
[1730666430041,0.785036,2465.6,2465.2,3.65577]
[1730666431402,2.05815723,2465.6,2465.2,3.65577]
[1730666431646,5.70845723,2465.6,2465.2,0.005]
[1730666433924,1.27312123,2465.8,2465.6,0.005]
[1730666434126,1.69749498,2465.9,2465.6,3.65522]
[1730666434127,1.27312123,2465.9,2465.6,3.65522]
[1730666434449,4.92270123,2466.1,2465.6,3.65522]
[1730666435052,4.92270123,2466.1,2465.3,0.8324]
[1730666435053,2.97061621,2466.2,2465.9,4.48204]
[1730666435257,1.27312123,2466.4,2466.2,3.64926]
[1730666435422,1.27312123,2466.5,2466.2,3.64926]
[1730666435610,1.27312123,2466.6,2466.3,0.005]
[1730666435830,1.27312123,2466.5,2466.4,0.08580151]
[1730666436028,1.27312123,2466.6,2466.4,0.08580151]
[1730666436435,1.27312123,2466.5,2466.4,0.08580151]
[1730666437070,1.2726852,2466.5,2466.1,3.65446]
[1730666437285,8.99510498,2466.6,2466.1,3.65446]
[1730666437446,1.2726942,2466.5,2466.2,3.64933]
[1730666437780,1.2726942,2466.5,2466.2,3.73513151]
[1730666438075,1.2726942,2466.5,2466.4,0.7966]
[1730666438225,1.2726942,2466.6,2466.4,0.7966]
[1730666438433,1.2726942,2466.6,2466.4,0.88226006]
[1730666439868,1.2726942,2466.5,2466.4,0.88226006]
[1730666440234,1.2726942,2466.5,2466.4,0.08566006]
[1730666440454,5.34626498,2466.6,2466.4,0.08566006]
[1730666440663,1.27341805,2466.5,2466.3,0.005]
[1730666441368,1.27341805,2466.4,2466.3,0.005]
[1730666441738,1.27341805,2466.4,2466.2,3.64933]
[1730666441934,1.27341805,2466.4,2466.1,4.45106]
[1730666442134,1.27341805,2466.4,2466.3,0.005]
[1730666442668,1.27341805,2466.4,2466.1,0.8016]
[1730666443038,1.27341805,2466.4,2466.1,4.45106]
[1730666443235,1.27341805,2466.4,2466.1,0.8016]
[1730666443451,1.27341805,2466.2,2465.9,0.005]
[1730666444380,1.27341805,2466.1,2465.9,0.005]
[1730666445043,1.27341805,2466.2,2466.1,3.65448]
[1730666445472,1.27341805,2466.3,2466.1,3.65448]
[1730666445691,1.27341805,2466.3,2466.2,4.44593]
[1730666445978,1.27341805,2466.5,2466.4,3.64904]
[1730666446341,1.69749498,2466.7,2466.4,3.64904]
[1730666446342,1.27341805,2466.6,2466.5,0.005]
[1730666446540,1.69749498,2466.6,2466.3,3.65417]
[1730666446780,1.27482255,2466.5,2466.3,3.65417]
[1730666447116,1.27482255,2466.5,2466.4,0.08540138]
[1730666447667,5.85579427,2466.5,2466.4,0.08540138]
[1730666447842,0.50940929,2466.5,2466.4,0.08540138]
[1730666448040,2.12177541,2466.5,2466.4,0.08540138]
[1730666448274,1.7001082,2466.5,2466.4,0.08540138]
[1730666448484,1.70015511,2466.5,2466.4,0.08540138]
[1730666448955,3.649,2466.5,2466.1,0.005]
[1730666449289,1.27528762,2466.2,2466.1,0.005]
[1730666449654,1.7003835,2466.3,2466.1,0.005]
[1730666450447,1.27540053,2466.2,2466.1,0.005]
[1730666450643,1.7003835,2466.2,2466.1,0.005]
[1730666451479,5.3497135,2466.2,2466.1,0.08548219]
[1730666451692,7.43724966,2466.2,2466.1,0.08548219]
[1730666451888,3.64964,2466.0,2465.7,0.005]
[1730666452106,3.64964,2466.0,2465.5,0.005]
[1730666452107,1.27581146,2465.8,2465.5,0.005]
[1730666452251,1.27581146,2465.7,2465.5,0.005]
[1730666452864,1.70108195,2465.6,2465.5,0.005]
[1730666453493,1.27562146,2465.6,2465.5,0.005]
[1730666453653,1.70108195,2465.7,2465.5,0.005]
[1730666454392,4.92537838,2465.6,2465.3,0.005]
[1730666454576,1.27517011,2465.5,2465.3,0.005]
[1730666454784,1.27517011,2465.6,2465.4,3.65052]
[1730666454966,1.27517011,2465.7,2465.5,3.65029]
[1730666455390,1.27517011,2465.8,2465.5,3.65029]
[1730666455753,1.27517011,2465.8,2465.3,0.005]
[1730666455957,1.27517011,2465.7,2465.5,0.005]
[1730666456261,1.27517011,2465.6,2465.5,0.005]
[1730666456699,1.27517011,2465.6,2465.5,0.505]
[1730666457193,1.27517011,2465.7,2465.5,4.15537]
[1730666457370,1.27517011,2465.8,2465.5,4.15537]
[1730666458087,1.27517011,2465.8,2465.7,0.005]
[1730666458287,1.27517011,2465.9,2465.7,0.005]
[1730666458504,1.27517011,2465.8,2465.7,0.005]
[1730666458803,1.27517011,2465.8,2465.7,0.08801677]
[1730666459375,4.92503011,2465.9,2465.7,0.08801677]
[1730666460009,1.27517011,2465.8,2465.7,0.08801677]
[1730666460618,1.27517011,2465.8,2465.7,0.08798847]
[1730666461573,1.27517011,2465.8,2465.7,0.005]
[1730666463308,1.27517011,2465.8,2465.7,0.08799656]
[1730666463512,1.27517011,2465.8,2465.7,0.08299656]
[1730666463885,4.92510011,2465.8,2465.7,0.08299656]
[1730666464195,4.92510011,2465.8,2465.5,0.505]
[1730666464395,5.47539011,2465.6,2465.5,0.5]
[1730666464588,8.90130195,2465.6,2465.5,0.5]
[1730666464937,9.32394031,2465.6,2465.5,0.5]
[1730666465206,7.20022,2465.6,2465.5,0.5]
[1730666465410,11.11486928,2465.6,2465.5,0.5]
[1730666465621,11.72726928,2465.6,2465.5,0.5]
[1730666465948,3.65139,2464.9,2464.7,0.005]
[1730666466292,3.65141,2464.8,2464.7,0.005]
[1730666466533,3.65156,2464.7,2464.5,0.005]
[1730666467198,3.6517,2464.6,2464.5,0.005]
[1730666467806,3.65156,2464.7,2464.5,0.005]
[1730666468020,3.65137,2464.9,2464.5,0.005]
[1730666468331,3.65144,2464.8,2464.5,0.005]
[1730666468692,3.65156,2464.7,2464.5,0.005]
[1730666468890,3.6517,2464.6,2464.5,0.005]
[1730666469130,0.72365241,2464.9,2464.5,0.005]
[1730666469131,3.65141,2464.8,2464.5,0.005]
[1730666469721,4.92509749,2465.1,2464.7,0.005]
[1730666469924,0.6124,2465.4,2464.3,0.89395753]
[1730666469925,1.27403749,2465.4,2465.1,0.005]
[1730666470104,1.27403749,2465.6,2465.3,0.005]
[1730666470309,3.65031,2465.6,2465.3,0.005]
[1730666470508,7.30062,2465.6,2465.3,0.005]
[1730666470704,3.65031,2465.6,2465.3,0.005]
[1730666471041,3.65046,2465.5,2465.3,0.005]
[1730666471719,2.51400573,2465.8,2465.3,0.005]
[1730666471720,3.65023,2465.6,2465.3,0.005]
[1730666472136,3.65038,2465.5,2465.3,0.005]
[1730666472437,3.65038,2465.5,2465.4,0.08328771]
[1730666472636,4.380441,2465.5,2465.4,0.08328771]
[1730666472841,3.65052,2465.4,2465.1,0.005]
[1730666473333,3.65052,2465.4,2464.7,3.65145]
[1730666473334,3.65111,2465.0,2464.7,0.005]
[1730666473558,3.65138,2464.9,2464.7,0.005]
[1730666473739,3.65141,2464.8,2464.7,0.005]
[1730666474745,4.381338,2465.0,2464.7,0.005]
[1730666474746,8.032578,2465.0,2464.7,0.005]
[1730666474921,4.381338,2465.0,2464.7,0.005]
[1730666475322,3.65141,2464.8,2464.5,0.005]
[1730666476234,3.65157,2464.7,2464.5,0.005]
[1730666476433,0.9195278,2464.8,2464.5,0.005]
[1730666476760,4.20156,2464.7,2464.3,0.005]
[1730666478968,3.65179,2464.6,2464.3,0.005]
[1730666479768,4.20156,2464.7,2464.3,0.005]
[1730666480321,4.77490878,2464.7,2464.3,0.005]
[1730666481366,3.65174,2464.6,2464.3,0.005]
[1730666481568,3.65174,2464.6,2464.4,0.08105343]
[1730666483162,0.6124,2464.9,2464.5,0.005]
[1730666483369,2.33403771,2465.3,2464.7,0.005]
[1730666483370,0.63532105,2465.3,2464.7,0.005]
[1730666483661,3.65143,2464.8,2464.6,0.08107366]
[1730666483863,3.65143,2464.8,2464.5,0.005]
[1730666484065,3.65168,2464.7,2464.5,0.005]
[1730666484232,3.65142,2464.8,2464.5,0.005]
[1730666484723,3.65142,2464.8,2464.3,4.47397]
[1730666484724,3.65165,2464.7,2464.3,0.8269]
[1730666484923,3.65173,2464.6,2464.3,0.8269]
[1730666485423,3.65173,2464.6,2464.3,0.005]
[1730666485929,3.65192,2464.5,2464.1,0.0665846]
[1730666486238,3.6523,2464.2,2464.1,0.0615846]
[1730666486636,4.2023,2464.2,2464.1,0.0615846]
[1730666487470,7.2023,2464.2,2464.1,0.0615846]
[1730666487758,8.65734395,2464.2,2464.1,0.0615846]
[1730666489226,8.65734395,2464.2,2464.1,0.14011726]
[1730666489855,8.65734395,2464.2,2464.1,0.0615846]
[1730666490050,5.10734395,2464.2,2464.1,0.14011726]
[1730666490256,4.20216,2464.3,2464.1,0.0615846]
[1730666490441,3.6523,2464.2,2464.1,0.0615846]
[1730666491435,4.20217,2464.3,2464.1,0.0615846]
[1730666492210,3.65217,2464.3,2464.1,0.0665846]
[1730666494265,7.3044,2464.3,2464.1,0.0615846]
[1730666494461,0.7669573,2464.3,2464.1,0.0665846]
[1730666495364,3.652,2464.4,2464.1,0.0665846]
[1730666496533,3.652,2464.4,2464.2,0.07843146]
[1730666497066,3.65215,2464.3,2464.2,0.07843146]
[1730666497464,4.20215,2464.3,2464.2,0.07843146]
[1730666498679,3.652,2464.4,2464.2,0.07843146]
[1730666498881,1.27403749,2464.6,2464.3,0.005]
[1730666499178,3.0,2465.0,2464.7,0.005]
[1730666499179,3.65122,2465.0,2464.7,0.005]
[1730666499380,3.65127,2464.9,2464.7,0.005]
[1730666499589,3.65127,2464.9,2464.8,0.07856501]
[1730666499755,0.3,2465.0,2464.7,0.005]
[1730666499961,3.6517,2464.6,2464.3,0.005]
[1730666500184,7.3035,2464.6,2464.3,0.005]
[1730666500493,3.65188,2464.5,2464.3,0.005]
[1730666500648,3.652,2464.4,2464.3,0.005]
[1730666500843,3.65162,2464.7,2464.3,0.005]
[1730666501145,4.078182,2464.6,2464.3,0.005]
[1730666501347,3.65188,2464.5,2464.3,0.005]
[1730666502056,4.078182,2464.6,2464.3,0.005]
[1730666502485,4.26389,2464.8,2464.3,3.65705]
[1730666502781,3.65123,2465.0,2464.6,0.005]
[1730666502782,3.6512,2465.0,2464.6,0.005]
[1730666503382,7.30238,2465.0,2464.6,0.005]
[1730666503585,3.65143,2464.8,2464.6,0.005]
[1730666504099,3.65182,2464.6,2464.4,0.005]
[1730666505187,3.65182,2464.6,2464.5,0.07856501]
[1730666505483,4.20182,2464.6,2464.5,0.07856501]
[1730666505855,4.20182,2464.6,2464.2,0.769]
[1730666506185,1.75124575,2464.8,2464.4,0.005]
[1730666506359,4.12867826,2464.8,2464.4,0.005]
[1730666506562,3.65164,2464.7,2464.4,0.005]
[1730666506778,3.65172,2464.6,2464.5,0.07856501]
[1730666507751,4.20172,2464.6,2464.5,0.07856501]
[1730666508603,5.47575749,2464.6,2464.5,0.07856501]
[1730666508790,5.47575749,2464.6,2464.4,0.005]
[1730666509088,5.47575749,2464.6,2464.5,0.07856501]
[1730666509299,6.69662729,2464.6,2464.5,0.07856501]
[1730666509892,5.4225898,2464.6,2464.5,0.07856501]
[1730666510389,7.12130646,2464.6,2464.5,0.07856501]
[1730666511165,7.12130646,2464.6,2464.4,0.005]
[1730666511361,1.27455072,2464.5,2464.4,0.005]
[1730666513199,2.41714526,2464.5,2464.4,0.005]
[1730666513403,6.06899526,2464.5,2464.4,0.005]
[1730666513567,2.8413112,2464.5,2464.4,0.005]
[1730666513768,2.41745581,2464.5,2464.4,0.005]
[1730666514898,2.41746817,2464.5,2464.4,0.005]
[1730666515098,2.41747907,2464.5,2464.4,0.005]
[1730666516290,1.27488453,2464.6,2464.4,0.8282]
[1730666516602,1.27488453,2464.5,2464.4,0.8282]
[1730666517365,1.69871666,2464.6,2464.4,0.8282]
[1730666518099,1.69871666,2464.5,2464.4,0.8282]
[1730666518300,2.81147452,2464.5,2464.4,0.005]
[1730666518513,3.23822984,2464.5,2464.4,0.005]
[1730666519403,2.12547198,2464.5,2464.4,0.005]
[1730666519712,1.70246314,2464.5,2464.4,0.005]
[1730666519880,1.70246314,2464.5,2464.4,0.08342336]
[1730666520463,2.12547198,2464.6,2464.4,0.08342336]
[1730666520708,2.12547198,2464.5,2464.4,0.08342336]
[1730666521117,2.12547198,2464.6,2464.4,0.08342336]
[1730666521408,2.12547198,2464.5,2464.4,0.08342336]
[1730666522969,3.65165,2464.7,2464.5,3.65185]
[1730666522970,1.70293181,2464.6,2464.5,3.65185]
[1730666523173,1.27711989,2464.6,2464.5,3.73022481]
[1730666523487,1.27711989,2464.7,2464.6,3.6567]
[1730666523685,1.27711989,2464.7,2464.6,0.005]
[1730666524003,2.42347715,2464.7,2464.6,0.08336267]
[1730666524203,2.42347715,2464.7,2464.6,0.07836267]
[1730666524402,4.49956517,2464.7,2464.4,0.005]
[1730666524607,1.70282318,2464.5,2464.4,0.005]
[1730666526081,1.70282318,2464.5,2464.4,0.08325342]
[1730666526320,5.35467318,2464.5,2464.4,0.08325342]
[1730666526491,6.97864871,2464.5,2464.4,0.08325342]
[1730666526698,4.85011973,2464.5,2464.4,0.08325342]
[1730666526906,6.97864871,2464.5,2464.4,0.08325342]
[1730666527598,6.55307535,2464.5,2464.4,0.08325342]
[1730666527808,2.90122535,2464.5,2464.4,0.08325342]
[1730666527997,2.90117701,2464.5,2464.4,0.005]
[1730666528324,6.55302701,2464.5,2464.4,0.08325342]
[1730666528485,6.97864871,2464.5,2464.4,0.005]
[1730666528922,6.97864871,2464.5,2464.4,0.08325342]
[1730666529127,6.97881124,2464.5,2464.4,0.005]
[1730666529487,6.97881124,2464.5,2464.4,0.08325342]
[1730666529774,6.97881124,2464.5,2464.4,0.005]
[1730666530227,6.97881124,2464.5,2464.4,0.08325342]
[1730666530522,6.97881124,2464.5,2464.4,0.07825342]
[1730666530523,8.40011973,2464.5,2464.4,0.07825342]
[1730666530733,10.95454954,2464.5,2464.4,0.07825342]
[1730666531031,3.65219,2464.3,2464.1,0.0615846]
[1730666531210,2.12928657,2464.2,2464.1,0.0615846]
[1730666532188,2.12928657,2464.3,2464.1,0.0615846]
[1730666532588,2.12928657,2464.2,2464.1,0.0615846]
[1730666535044,2.12928657,2464.3,2464.1,0.0615846]
[1730666535540,5.78145657,2464.3,2464.1,0.0615846]
[1730666535748,7.45507318,2464.3,2464.1,0.0615846]
[1730666536135,2.12928657,2464.3,2464.2,0.005]
[1730666536335,1.27728778,2464.3,2464.2,4.43368]
[1730666536528,1.27728778,2464.4,2464.3,3.65215]